[Event "*** SCC Grand Prix: Titled Tuesday Blitz"]
[Site "Chess.com"]
[Date "2020.07.07"]
[Round "2"]
[White "Aguiar94"]
[Black "abhidabhi"]
[Result "1-0"]
[WhiteElo "2524"]
[BlackElo "2744"]
[TimeControl "180+1"]
[EndTime "10:19:22 PDT"]
[Termination "Aguiar94 won by resignation"]

1. e4 {[%clk 0:03:00.9]} 1... e6 {[%clk 0:03:00.3]} 2. d4 {[%clk 0:03:00.4]}
2... d5 {[%clk 0:03:00.8]} 3. e5 {[%clk 0:03:00.1]} 3... c5 {[%clk 0:03:00.4]}
4. c3 {[%clk 0:02:59.6]} 4... Nc6 {[%clk 0:03:00.7]} 5. Nf3 {[%clk 0:03:00]}
5... Qb6 {[%clk 0:03:00.9]} 6. a3 {[%clk 0:03:00.5]} 6... Nh6 {[%clk 0:03:01]}
7. b4 {[%clk 0:03:00]} 7... cxd4 {[%clk 0:03:01.3]} 8. cxd4 {[%clk 0:03:00.1]}
8... Nf5 {[%clk 0:03:01.7]} 9. Bb2 {[%clk 0:02:59.7]} 9... Bd7 {[%clk 0:03:01]}
10. g4 {[%clk 0:02:57.8]} 10... Nfe7 {[%clk 0:02:56]} 11. Nc3 {[%clk 0:02:55.9]}
11... h5 {[%clk 0:02:53.3]} 12. Na4 {[%clk 0:02:49.8]} 12... Qd8 {[%clk
0:02:51]} 13. gxh5 {[%clk 0:02:41.6]} 13... Nf5 {[%clk 0:02:47.5]} 14. Nc5
{[%clk 0:02:17.6]} 14... Bxc5 {[%clk 0:02:46.6]} 15. dxc5 {[%clk 0:02:15.1]}
15... Rxh5 {[%clk 0:02:35.6]} 16. Be2 {[%clk 0:02:00.1]} 16... Rh3 {[%clk
0:02:16.1]} 17. Rg1 {[%clk 0:01:34.9]} 17... Qc7 {[%clk 0:02:05.5]} 18. Bd3
{[%clk 0:01:26.4]} 18... Rxf3 {[%clk 0:01:48.3]} 19. Qxf3 {[%clk 0:01:25.5]}
19... Nxe5 {[%clk 0:01:48.5]} 20. Qe2 {[%clk 0:01:19]} 20... Nxd3+ {[%clk
0:01:47.3]} 21. Qxd3 {[%clk 0:01:19.9]} 21... Qxh2 {[%clk 0:01:47.5]} 22. O-O-O
{[%clk 0:01:11]} 22... O-O-O {[%clk 0:01:37.3]} 23. Qe2 {[%clk 0:01:05.4]} 23...
a6 {[%clk 0:01:23.4]} 24. Be5 {[%clk 0:01:02.5]} 24... Qh3 {[%clk 0:01:22.5]}
25. Kb2 {[%clk 0:00:59.5]} 25... Bb5 {[%clk 0:01:20.9]} 26. Qg4 {[%clk
0:00:55.8]} 26... Qxg4 {[%clk 0:01:15.5]} 27. Rxg4 {[%clk 0:00:56.7]} 27... Be2
{[%clk 0:01:15.5]} 28. Rdg1 {[%clk 0:00:55.6]} 28... Bxg4 {[%clk 0:01:15.5]} 29.
Rxg4 {[%clk 0:00:56.5]} 29... f6 {[%clk 0:01:15.7]} 30. Bc3 {[%clk 0:00:54.7]}
30... d4 {[%clk 0:01:13.8]} 31. Bd2 {[%clk 0:00:54.9]} 31... e5 {[%clk 0:01:14]}
32. Kc2 {[%clk 0:00:53]} 32... g5 {[%clk 0:01:10.2]} 33. Kd3 {[%clk 0:00:48.9]}
33... Kd7 {[%clk 0:01:10.4]} 34. Rg1 {[%clk 0:00:42.3]} 34... Rh8 {[%clk
0:01:10]} 35. a4 {[%clk 0:00:40.6]} 35... Rh2 {[%clk 0:01:01.9]} 36. Rf1 {[%clk
0:00:34.6]} 36... Rh3+ {[%clk 0:00:55]} 37. Kc4 {[%clk 0:00:34.5]} 37... Ra3
{[%clk 0:00:54.5]} 38. Rh1 {[%clk 0:00:30.8]} 38... Rxa4 {[%clk 0:00:45.9]} 39.
Kb3 {[%clk 0:00:29.5]} 39... Rxb4+ {[%clk 0:00:36.4]} 40. Kxb4 {[%clk
0:00:27.3]} 40... Ne7 {[%clk 0:00:34.8]} 41. Kc4 {[%clk 0:00:26.4]} 41... Ke6
{[%clk 0:00:28.7]} 42. Rb1 {[%clk 0:00:24.7]} 42... g4 {[%clk 0:00:20.8]} 43.
Rb6+ {[%clk 0:00:23]} 43... Kd7 {[%clk 0:00:18.9]} 44. Rxb7+ {[%clk 0:00:22.9]}
44... Ke6 {[%clk 0:00:18.7]} 45. Ra7 {[%clk 0:00:22.9]} 45... Nc6 {[%clk
0:00:15.1]} 46. Rxa6 {[%clk 0:00:20.9]} 46... Kd7 {[%clk 0:00:15.5]} 47. Rb6
{[%clk 0:00:21.1]} 47... f5 {[%clk 0:00:13.9]} 48. Rb7+ {[%clk 0:00:20.4]} 48...
Kc8 {[%clk 0:00:13.5]} 49. Rf7 {[%clk 0:00:19.8]} 49... f4 {[%clk 0:00:10.5]}
50. Kd5 {[%clk 0:00:19.8]} 50... Nd8 {[%clk 0:00:10.4]} 51. Rh7 {[%clk
0:00:19.1]} 51... g3 {[%clk 0:00:08.5]} 52. fxg3 {[%clk 0:00:18.5]} 52... fxg3
{[%clk 0:00:08.6]} 53. Rg7 {[%clk 0:00:19]} 1-0

[Event "*** SCC Grand Prix: Titled Tuesday Blitz"]
[Site "Chess.com"]
[Date "2020.07.07"]
[Round "2"]
[White "KaspMagAlpha"]
[Black "RitvarsReimanis"]
[Result "0-1"]
[WhiteElo "2239"]
[BlackElo "2571"]
[TimeControl "180+1"]
[EndTime "10:19:22 PDT"]
[Termination "RitvarsReimanis won by resignation"]

1. d4 {[%clk 0:03:00.9]} 1... Nf6 {[%clk 0:02:59.1]} 2. c4 {[%clk 0:03:00.5]}
2... e6 {[%clk 0:02:58]} 3. Nf3 {[%clk 0:03:00.2]} 3... d5 {[%clk 0:02:57.3]} 4.
g3 {[%clk 0:02:59.1]} 4... Be7 {[%clk 0:02:57.4]} 5. Bg2 {[%clk 0:02:59.2]} 5...
O-O {[%clk 0:02:57.8]} 6. O-O {[%clk 0:02:59]} 6... dxc4 {[%clk 0:02:57.9]} 7.
Ne5 {[%clk 0:02:59]} 7... Nc6 {[%clk 0:02:57.6]} 8. Bxc6 {[%clk 0:02:58.6]} 8...
bxc6 {[%clk 0:02:58.5]} 9. Nxc6 {[%clk 0:02:58.4]} 9... Qd7 {[%clk 0:02:59]} 10.
Nxe7+ {[%clk 0:02:58.5]} 10... Qxe7 {[%clk 0:02:59.9]} 11. Qa4 {[%clk
0:02:58.4]} 11... c5 {[%clk 0:03:00.3]} 12. Qa3 {[%clk 0:02:57.8]} 12... Rb8
{[%clk 0:02:57.9]} 13. Nc3 {[%clk 0:02:54.5]} 13... Nd5 {[%clk 0:02:53.9]} 14.
Ne4 {[%clk 0:02:47.8]} 14... cxd4 {[%clk 0:02:51.3]} 15. Qxe7 {[%clk 0:02:42.1]}
15... Nxe7 {[%clk 0:02:52.2]} 16. Bf4 {[%clk 0:02:29.6]} 16... Rxb2 {[%clk
0:02:50.2]} 17. Bd6 {[%clk 0:02:22.1]} 17... Re8 {[%clk 0:02:42.6]} 18. Rfd1
{[%clk 0:02:21]} 18... Nc6 {[%clk 0:02:33.9]} 19. Bc5 {[%clk 0:02:15.3]} 19...
Rxe2 {[%clk 0:02:28.1]} 20. Nd6 {[%clk 0:02:14.7]} 20... Rd8 {[%clk 0:02:27.8]}
21. Nxc4 {[%clk 0:02:13.5]} 21... Ba6 {[%clk 0:02:18.9]} 22. Na3 {[%clk
0:01:56.7]} 22... d3 {[%clk 0:02:11.2]} 23. Nb1 {[%clk 0:01:15.8]} 23... Rc2
{[%clk 0:02:01.3]} 24. Be3 {[%clk 0:01:12.5]} 24... Ne5 {[%clk 0:01:40.1]} 25.
Nd2 {[%clk 0:01:00.1]} 25... Bb7 {[%clk 0:01:26.3]} 26. f4 {[%clk 0:00:55.4]}
26... Nf3+ {[%clk 0:01:10.4]} 27. Kf2 {[%clk 0:00:46.2]} 27... Nxd2 {[%clk
0:01:06]} 28. Rxd2 {[%clk 0:00:44.7]} 28... Rxd2+ {[%clk 0:00:53.8]} 29. Bxd2
{[%clk 0:00:44.3]} 29... Bd5 {[%clk 0:00:39.2]} 30. a4 {[%clk 0:00:42.3]} 30...
Bb3 {[%clk 0:00:38.2]} 31. a5 {[%clk 0:00:41.7]} 31... a6 {[%clk 0:00:37.9]} 32.
Ra3 {[%clk 0:00:40.7]} 32... Bc4 {[%clk 0:00:35.6]} 33. Rc3 {[%clk 0:00:39.8]}
33... Bb5 {[%clk 0:00:33.9]} 34. Rc7 {[%clk 0:00:39.6]} 34... h6 {[%clk
0:00:28.5]} 35. g4 {[%clk 0:00:35.5]} 35... Rd7 {[%clk 0:00:24.6]} 36. Rc8+
{[%clk 0:00:31.6]} 36... Kh7 {[%clk 0:00:23.7]} 37. Ke3 {[%clk 0:00:31.9]} 37...
Kg6 {[%clk 0:00:22]} 38. h4 {[%clk 0:00:31.3]} 38... h5 {[%clk 0:00:21.6]} 39.
gxh5+ {[%clk 0:00:20.3]} 39... Kxh5 {[%clk 0:00:17.9]} 40. Rh8+ {[%clk
0:00:20.7]} 40... Kg6 {[%clk 0:00:17.7]} 41. h5+ {[%clk 0:00:19.5]} 41... Kf5
{[%clk 0:00:16.8]} 42. Rh7 {[%clk 0:00:19.4]} 42... f6 {[%clk 0:00:16.3]} 43. h6
{[%clk 0:00:16.6]} 43... gxh6 {[%clk 0:00:15.2]} 44. Rxh6 {[%clk 0:00:16.6]}
44... Rg7 {[%clk 0:00:14.2]} 45. Rh5+ {[%clk 0:00:16.2]} 45... Kg6 {[%clk
0:00:14.1]} 46. Rh3 {[%clk 0:00:15.4]} 46... Kf7 {[%clk 0:00:13.4]} 47. Rf3
{[%clk 0:00:15.1]} 47... Rg2 {[%clk 0:00:13]} 48. Rh3 {[%clk 0:00:12.5]} 48...
Re2+ {[%clk 0:00:12.3]} 49. Kd4 {[%clk 0:00:12.6]} 49... Rxd2 {[%clk 0:00:13.2]}
50. Rh6 {[%clk 0:00:12.5]} 50... Rc2 {[%clk 0:00:11.6]} 51. Rh2 {[%clk
0:00:13.4]} 51... Rxh2 {[%clk 0:00:10.6]} 52. Ke3 {[%clk 0:00:13.7]} 52... d2
{[%clk 0:00:11.2]} 53. f5 {[%clk 0:00:13.8]} 53... d1=Q {[%clk 0:00:12.1]} 54.
fxe6+ {[%clk 0:00:14.7]} 54... Kxe6 {[%clk 0:00:11.7]} 55. Kf4 {[%clk
0:00:15.6]} 55... Rh4+ {[%clk 0:00:10.8]} 56. Kg3 {[%clk 0:00:15.7]} 56... Qg4+
{[%clk 0:00:10]} 57. Kf2 {[%clk 0:00:15.9]} 57... Rh3 {[%clk 0:00:09.3]} 0-1

[Event "*** SCC Grand Prix: Titled Tuesday Blitz"]
[Site "Chess.com"]
[Date "2020.07.07"]
[Round "2"]
[White "Juanovic"]
[Black "PenguinPacks"]
[Result "1-0"]
[WhiteElo "2075"]
[BlackElo "2369"]
[TimeControl "180+1"]
[EndTime "10:19:22 PDT"]
[Termination "Juanovic won by checkmate"]

1. e4 {[%clk 0:03:00.9]} 1... e5 {[%clk 0:02:57.3]} 2. Nf3 {[%clk 0:03:00.5]}
2... Nc6 {[%clk 0:02:56]} 3. Bb5 {[%clk 0:02:59.9]} 3... a6 {[%clk 0:02:56.1]}
4. Ba4 {[%clk 0:02:57.1]} 4... d6 {[%clk 0:02:56.5]} 5. O-O {[%clk 0:02:56.3]}
5... Nf6 {[%clk 0:02:55.6]} 6. d3 {[%clk 0:02:56.1]} 6... g6 {[%clk 0:02:55.6]}
7. h3 {[%clk 0:02:55.9]} 7... Bg7 {[%clk 0:02:55.7]} 8. Re1 {[%clk 0:02:56.1]}
8... O-O {[%clk 0:02:55.9]} 9. c3 {[%clk 0:02:54.6]} 9... b5 {[%clk 0:02:55.5]}
10. Bb3 {[%clk 0:02:54.4]} 10... Bb7 {[%clk 0:02:55.4]} 11. Nbd2 {[%clk
0:02:50.5]} 11... Re8 {[%clk 0:02:54.4]} 12. Ng5 {[%clk 0:02:48.7]} 12... Re7
{[%clk 0:02:54.2]} 13. Ndf3 {[%clk 0:02:32.1]} 13... h6 {[%clk 0:02:52.2]} 14.
Nxf7 {[%clk 0:02:32.3]} 14... Rxf7 {[%clk 0:02:53.1]} 15. Bxf7+ {[%clk 0:02:32]}
15... Kxf7 {[%clk 0:02:54]} 16. d4 {[%clk 0:02:25.1]} 16... Qe7 {[%clk
0:02:48.4]} 17. a4 {[%clk 0:02:09.7]} 17... Rd8 {[%clk 0:02:37.9]} 18. axb5
{[%clk 0:02:09.1]} 18... axb5 {[%clk 0:02:37.8]} 19. Qb3+ {[%clk 0:02:08.9]}
19... Kf8 {[%clk 0:02:35.4]} 20. Qxb5 {[%clk 0:02:08.5]} 20... Rb8 {[%clk
0:02:35.3]} 21. Nh4 {[%clk 0:02:07.5]} 21... Qf7 {[%clk 0:02:34]} 22. d5 {[%clk
0:01:58.5]} 22... Ne7 {[%clk 0:02:31]} 23. Ra7 {[%clk 0:01:56.8]} 23... c6
{[%clk 0:02:22.1]} 24. dxc6 {[%clk 0:01:45.4]} 24... Nxc6 {[%clk 0:02:23]} 25.
Nxg6+ {[%clk 0:01:36.5]} 25... Kg8 {[%clk 0:01:51.9]} 26. Rxb7 {[%clk
0:01:29.3]} 26... Qxb7 {[%clk 0:01:17.2]} 27. Qxc6 {[%clk 0:01:29]} 27... Qxc6
{[%clk 0:01:17]} 28. Ne7+ {[%clk 0:01:29.2]} 28... Kf7 {[%clk 0:01:17.5]} 29.
Nxc6 {[%clk 0:01:29.5]} 29... Rb6 {[%clk 0:01:14.6]} 30. Na5 {[%clk 0:01:24.3]}
30... Ke6 {[%clk 0:01:12.8]} 31. b4 {[%clk 0:01:19.3]} 31... d5 {[%clk
0:01:09.1]} 32. Be3 {[%clk 0:01:02.1]} 32... d4 {[%clk 0:01:00.5]} 33. cxd4
{[%clk 0:00:58.1]} 33... Rxb4 {[%clk 0:01:00.6]} 34. d5+ {[%clk 0:00:57.3]}
34... Kd6 {[%clk 0:00:50.5]} 35. f3 {[%clk 0:00:56.8]} 35... Ra4 {[%clk
0:00:48.8]} 36. Nc6 {[%clk 0:00:45.7]} 36... Nh5 {[%clk 0:00:48.2]} 37. Rc1
{[%clk 0:00:34.7]} 37... Nf4 {[%clk 0:00:43.1]} 38. Bxf4 {[%clk 0:00:27]} 38...
exf4 {[%clk 0:00:44]} 39. h4 {[%clk 0:00:16.3]} 39... Bf6 {[%clk 0:00:34.7]} 40.
h5 {[%clk 0:00:15.6]} 40... Bg7 {[%clk 0:00:17.6]} 41. Kh2 {[%clk 0:00:15.7]}
41... Ra2 {[%clk 0:00:15.5]} 42. Kh3 {[%clk 0:00:15.6]} 42... Bf6 {[%clk
0:00:15.2]} 43. Rb1 {[%clk 0:00:13.7]} 43... Ra8 {[%clk 0:00:13]} 44. Rb8 {[%clk
0:00:12.8]} 44... Ra2 {[%clk 0:00:12.4]} 45. Rf8 {[%clk 0:00:11.9]} 45... Bg5
{[%clk 0:00:12.6]} 46. Rf5 {[%clk 0:00:11.2]} 46... Kc5 {[%clk 0:00:11.9]} 47.
Rxg5 {[%clk 0:00:11.3]} 47... hxg5 {[%clk 0:00:11.7]} 48. h6 {[%clk 0:00:10.2]}
48... Ra8 {[%clk 0:00:12.2]} 49. Kg4 {[%clk 0:00:10.3]} 49... Rg8 {[%clk
0:00:12.7]} 50. Kh5 {[%clk 0:00:10.3]} 50... Kd6 {[%clk 0:00:12.4]} 51. h7
{[%clk 0:00:10.7]} 51... Rh8 {[%clk 0:00:12.4]} 52. Kg6 {[%clk 0:00:11.6]} 52...
g4 {[%clk 0:00:12.7]} 53. Kg7 {[%clk 0:00:11.3]} 53... Rxh7+ {[%clk 0:00:08.6]}
54. Kxh7 {[%clk 0:00:11.4]} 54... gxf3 {[%clk 0:00:09.5]} 55. gxf3 {[%clk
0:00:11.6]} 55... Kc5 {[%clk 0:00:09.2]} 56. Kg6 {[%clk 0:00:12.1]} 56... Kc4
{[%clk 0:00:09.6]} 57. d6 {[%clk 0:00:12.1]} 57... Kd3 {[%clk 0:00:10.5]} 58. d7
{[%clk 0:00:12.5]} 58... Ke2 {[%clk 0:00:11.4]} 59. d8=Q {[%clk 0:00:13.1]}
59... Kxf3 {[%clk 0:00:12.3]} 60. e5 {[%clk 0:00:11.6]} 60... Ke4 {[%clk
0:00:13.2]} 61. e6 {[%clk 0:00:11.9]} 61... f3 {[%clk 0:00:14.1]} 62. e7 {[%clk
0:00:12.3]} 62... f2 {[%clk 0:00:15]} 63. e8=Q+ {[%clk 0:00:12.8]} 63... Kf3
{[%clk 0:00:15.9]} 64. Qf6+ {[%clk 0:00:12.7]} 64... Kg3 {[%clk 0:00:15.4]} 65.
Qee5+ {[%clk 0:00:11.8]} 65... Kh3 {[%clk 0:00:15.6]} 66. Qeg5 {[%clk
0:00:10.3]} 66... f1=Q {[%clk 0:00:13.9]} 67. Qh8# {[%clk 0:00:11.2]} 1-0

[Event "*** SCC Grand Prix: Titled Tuesday Blitz"]
[Site "Chess.com"]
[Date "2020.07.07"]
[Round "2"]
[White "VincentKeymer"]
[Black "blitzking1729"]
[Result "1-0"]
[WhiteElo "2876"]
[BlackElo "2556"]
[TimeControl "180+1"]
[EndTime "10:19:23 PDT"]
[Termination "VincentKeymer won on time"]

1. Nf3 {[%clk 0:03:00.9]} 1... d5 {[%clk 0:02:59.5]} 2. e3 {[%clk 0:03:00.8]}
2... c5 {[%clk 0:02:59.5]} 3. b3 {[%clk 0:03:00.5]} 3... Nc6 {[%clk 0:02:59.4]}
4. Bb5 {[%clk 0:02:59.7]} 4... Nf6 {[%clk 0:02:54.6]} 5. Bb2 {[%clk 0:02:58.4]}
5... e6 {[%clk 0:02:54.6]} 6. O-O {[%clk 0:02:58.1]} 6... Be7 {[%clk 0:02:54.4]}
7. Bxc6+ {[%clk 0:02:57.5]} 7... bxc6 {[%clk 0:02:54]} 8. d3 {[%clk 0:02:58]}
8... O-O {[%clk 0:02:53.7]} 9. Nbd2 {[%clk 0:02:57.7]} 9... a5 {[%clk
0:02:49.7]} 10. Ne5 {[%clk 0:02:57]} 10... Qc7 {[%clk 0:02:48.3]} 11. a4 {[%clk
0:02:48.5]} 11... Ba6 {[%clk 0:02:46.3]} 12. f4 {[%clk 0:02:47.8]} 12... Rfd8
{[%clk 0:02:37.6]} 13. Qf3 {[%clk 0:02:37.5]} 13... Rab8 {[%clk 0:02:35.5]} 14.
Qg3 {[%clk 0:02:29.3]} 14... g6 {[%clk 0:02:32.4]} 15. f5 {[%clk 0:02:18.5]}
15... Nh5 {[%clk 0:02:14.4]} 16. Qh3 {[%clk 0:01:58.2]} 16... exf5 {[%clk
0:02:07.9]} 17. Rxf5 {[%clk 0:01:58]} 17... Bc8 {[%clk 0:02:04.6]} 18. Nxf7
{[%clk 0:01:50.2]} 18... Bf8 {[%clk 0:01:43.3]} 19. Nxd8 {[%clk 0:00:40.3]}
19... Bxf5 {[%clk 0:01:31.2]} 20. g4 {[%clk 0:00:39.6]} 20... Bxg4 {[%clk
0:01:25]} 21. Qxg4 {[%clk 0:00:38.4]} 21... Rxd8 {[%clk 0:01:24.6]} 22. Rf1
{[%clk 0:00:36.7]} 22... Qe7 {[%clk 0:01:18.9]} 23. e4 {[%clk 0:00:35.8]} 23...
Bg7 {[%clk 0:01:15.5]} 24. Bxg7 {[%clk 0:00:34.8]} 24... Nxg7 {[%clk 0:01:09.6]}
25. Re1 {[%clk 0:00:28.8]} 25... Rf8 {[%clk 0:00:46.1]} 26. Qg3 {[%clk
0:00:25.7]} 26... Nh5 {[%clk 0:00:32.3]} 27. Qg4 {[%clk 0:00:16.5]} 27... Qf6
{[%clk 0:00:21.7]} 28. Rf1 {[%clk 0:00:11.6]} 28... Qd4+ {[%clk 0:00:21.5]} 29.
Kg2 {[%clk 0:00:09.2]} 29... Rxf1 {[%clk 0:00:20.5]} 30. Nxf1 {[%clk 0:00:09.6]}
30... dxe4 {[%clk 0:00:20.1]} 31. dxe4 {[%clk 0:00:09.8]} 31... Nf6 {[%clk
0:00:19.1]} 32. Qe6+ {[%clk 0:00:10.1]} 32... Kg7 {[%clk 0:00:19.4]} 33. Qe7+
{[%clk 0:00:09.7]} 33... Kg8 {[%clk 0:00:19.4]} 34. Qe6+ {[%clk 0:00:09.1]}
34... Kg7 {[%clk 0:00:18.9]} 35. Ng3 {[%clk 0:00:03.7]} 35... Qd2+ {[%clk
0:00:17.9]} 36. Kh3 {[%clk 0:00:04.2]} 36... Qg5 {[%clk 0:00:14.6]} 37. Qe7+
{[%clk 0:00:03.6]} 37... Kg8 {[%clk 0:00:10.2]} 38. Qe6+ {[%clk 0:00:04]} 38...
Kg7 {[%clk 0:00:10.3]} 39. Qe7+ {[%clk 0:00:03.5]} 39... Kg8 {[%clk 0:00:10.6]}
40. e5 {[%clk 0:00:04.1]} 40... Qh6+ {[%clk 0:00:10.7]} 41. Kg2 {[%clk
0:00:04.2]} 41... Nd5 {[%clk 0:00:10.7]} 42. Qe8+ {[%clk 0:00:03.3]} 42... Kg7
{[%clk 0:00:10.2]} 43. Qd7+ {[%clk 0:00:03.8]} 43... Kg8 {[%clk 0:00:09.9]} 44.
Qc8+ {[%clk 0:00:04.3]} 44... Kg7 {[%clk 0:00:09.8]} 45. Qb7+ {[%clk 0:00:04.9]}
45... Kg8 {[%clk 0:00:09.7]} 46. Qxc6 {[%clk 0:00:05.8]} 46... Qd2+ {[%clk
0:00:08.9]} 47. Kh3 {[%clk 0:00:05.7]} 47... Qh6+ {[%clk 0:00:08.6]} 48. Kg4
{[%clk 0:00:05.4]} 48... Qf4+ {[%clk 0:00:08.1]} 49. Kh3 {[%clk 0:00:05.8]}
49... Qh6+ {[%clk 0:00:08]} 50. Kg2 {[%clk 0:00:06.2]} 50... Qf4 {[%clk
0:00:08.3]} 51. Qxd5+ {[%clk 0:00:05.6]} 51... Kg7 {[%clk 0:00:02]} 52. e6
{[%clk 0:00:05.9]} 52... Kg8 {[%clk 0:00:01.2]} 53. Qd8+ {[%clk 0:00:06]} 53...
Kg7 {[%clk 0:00:01.5]} 54. e7 {[%clk 0:00:06.3]} 1-0

[Event "*** SCC Grand Prix: Titled Tuesday Blitz"]
[Site "Chess.com"]
[Date "2020.07.07"]
[Round "2"]
[White "Vitor-Moraes"]
[Black "Omk124"]
[Result "0-1"]
[WhiteElo "2006"]
[BlackElo "2375"]
[TimeControl "180+1"]
[EndTime "10:19:23 PDT"]
[Termination "Omk124 won on time"]

1. e4 {[%clk 0:03:00.9]} 1... g6 {[%clk 0:02:58.4]} 2. f4 {[%clk 0:02:59.9]}
2... Bg7 {[%clk 0:02:57.9]} 3. Nf3 {[%clk 0:03:00.4]} 3... c6 {[%clk 0:02:54.9]}
4. Bc4 {[%clk 0:02:58.4]} 4... d5 {[%clk 0:02:54.5]} 5. exd5 {[%clk 0:02:53.9]}
5... cxd5 {[%clk 0:02:55.4]} 6. Bb5+ {[%clk 0:02:48.9]} 6... Nc6 {[%clk
0:02:55.3]} 7. Ne5 {[%clk 0:02:30]} 7... Qc7 {[%clk 0:02:41.3]} 8. d4 {[%clk
0:02:24.7]} 8... Nh6 {[%clk 0:02:36.2]} 9. Nc3 {[%clk 0:02:21.9]} 9... Be6
{[%clk 0:02:31.4]} 10. Qf3 {[%clk 0:02:13.3]} 10... a6 {[%clk 0:02:24.9]} 11.
Bxc6+ {[%clk 0:02:04.1]} 11... bxc6 {[%clk 0:02:23.4]} 12. O-O {[%clk
0:01:44.8]} 12... O-O {[%clk 0:02:22.1]} 13. Na4 {[%clk 0:01:39.2]} 13... Bf5
{[%clk 0:02:18.3]} 14. Qe2 {[%clk 0:01:23.2]} 14... Qb8 {[%clk 0:02:00.8]} 15.
Nc5 {[%clk 0:01:18]} 15... Qc7 {[%clk 0:01:57.5]} 16. Nxa6 {[%clk 0:01:06.3]}
16... Qd6 {[%clk 0:01:38.2]} 17. Nc5 {[%clk 0:01:04.7]} 17... f6 {[%clk
0:01:35.7]} 18. Nf3 {[%clk 0:00:44.2]} 18... Nf7 {[%clk 0:01:34.3]} 19. a4
{[%clk 0:00:37.5]} 19... e5 {[%clk 0:01:33.8]} 20. c3 {[%clk 0:00:27.7]} 20...
Rfe8 {[%clk 0:01:31.1]} 21. Qf2 {[%clk 0:00:15.8]} 21... exf4 {[%clk 0:01:23.9]}
22. b4 {[%clk 0:00:10.8]} 22... g5 {[%clk 0:01:19.9]} 23. Bd2 {[%clk 0:00:08.6]}
23... Nh6 {[%clk 0:01:18.3]} 24. h3 {[%clk 0:00:07.5]} 24... Nf7 {[%clk
0:01:14.2]} 25. Rfe1 {[%clk 0:00:07.3]} 25... h5 {[%clk 0:01:13.3]} 26. Rxe8+
{[%clk 0:00:06.2]} 26... Rxe8 {[%clk 0:01:14.2]} 27. a5 {[%clk 0:00:06.2]} 27...
h4 {[%clk 0:01:10.4]} 28. Re1 {[%clk 0:00:05.2]} 28... Ra8 {[%clk 0:00:50.9]}
29. Qe2 {[%clk 0:00:05.1]} 29... Qc7 {[%clk 0:00:49.6]} 30. Qe7 {[%clk
0:00:04.8]} 30... Qxe7 {[%clk 0:00:44.8]} 31. Rxe7 {[%clk 0:00:05.7]} 31... Nd6
{[%clk 0:00:45.7]} 32. Rc7 {[%clk 0:00:04.3]} 32... Ne4 {[%clk 0:00:44.9]} 33.
Be1 {[%clk 0:00:02.5]} 33... Nxc5 {[%clk 0:00:39.4]} 34. dxc5 {[%clk 0:00:02.1]}
34... Be4 {[%clk 0:00:36.2]} 35. Rxc6 {[%clk 0:00:01.8]} 35... d4 {[%clk
0:00:36.4]} 36. Nxd4 {[%clk 0:00:02]} 36... Bxc6 {[%clk 0:00:35.6]} 37. Nxc6
{[%clk 0:00:02.9]} 37... f5 {[%clk 0:00:36.5]} 38. Ne7+ {[%clk 0:00:02.4]} 38...
Kf7 {[%clk 0:00:35.8]} 39. Nxf5 {[%clk 0:00:03.3]} 39... Bf6 {[%clk 0:00:36.7]}
40. Nd6+ {[%clk 0:00:04]} 40... Ke6 {[%clk 0:00:36.4]} 41. c4 {[%clk 0:00:04.4]}
41... Bd4+ {[%clk 0:00:34.8]} 42. Bf2 {[%clk 0:00:04.3]} 42... Rb8 {[%clk
0:00:35.7]} 43. Bxd4 {[%clk 0:00:03.9]} 43... Rxb4 {[%clk 0:00:36.6]} 44. Nb5
{[%clk 0:00:03.4]} 44... Rxc4 {[%clk 0:00:36]} 45. Bf2 {[%clk 0:00:04.3]} 45...
Rb4 {[%clk 0:00:35]} 46. a6 {[%clk 0:00:04.6]} 46... Rxb5 {[%clk 0:00:34.1]} 47.
a7 {[%clk 0:00:05.2]} 47... Ra5 {[%clk 0:00:34.3]} 48. Kf1 {[%clk 0:00:05.3]}
48... Rxa7 {[%clk 0:00:32.2]} 49. Ke2 {[%clk 0:00:05.2]} 49... Kd5 {[%clk
0:00:30.9]} 50. Kf3 {[%clk 0:00:05.2]} 50... Ra2 {[%clk 0:00:29.6]} 51. Bg1
{[%clk 0:00:04.2]} 51... Kc6 {[%clk 0:00:28.9]} 52. Bf2 {[%clk 0:00:04.3]} 52...
Rc2 {[%clk 0:00:28.2]} 53. Bg1 {[%clk 0:00:04.3]} 53... Rc3+ {[%clk 0:00:28.7]}
54. Kg4 {[%clk 0:00:03.6]} 54... Rg3+ {[%clk 0:00:28.6]} 55. Kf5 {[%clk
0:00:02.9]} 55... Rxg2 {[%clk 0:00:29.5]} 56. Bd4 {[%clk 0:00:02.7]} 56... f3
{[%clk 0:00:29.7]} 57. Ke4 {[%clk 0:00:02.2]} 57... f2 {[%clk 0:00:30.6]} 0-1